[Event "Live Chess"]
[Site "Chess.com"]
[Date "2024.06.01"]
[Round "-"]
[White "Crowded_House"]
[Black "MaximKhimchenko"]
[Result "1-0"]
[WhiteElo "1747"]
[BlackElo "1785"]
[TimeControl "300"]
[EndTime "10:03:13 PDT"]
[Termination "Crowded_House won by resignation"]

1. d4 {[%clk 0:04:56.5]} 1... c5 {[%clk 0:04:59]} 2. c3 {[%clk 0:04:53.7]} 2...
Nf6 {[%clk 0:04:58.9]} 3. dxc5 {[%clk 0:04:51.1]} 3... e5 {[%clk 0:04:57.7]} 4.
Bg5 {[%clk 0:04:47.7]} 4... Bxc5 {[%clk 0:04:56.4]} 5. e3 {[%clk 0:04:46]} 5...
h5 {[%clk 0:04:54.6]} 6. Nf3 {[%clk 0:04:39.1]} 6... Nc6 {[%clk 0:04:52]} 7.
Nbd2 {[%clk 0:04:34.9]} 7... d6 {[%clk 0:04:42.4]} 8. Nb3 {[%clk 0:04:31.8]}
8... Bb6 {[%clk 0:04:40.7]} 9. Bb5 {[%clk 0:04:27.4]} 9... Bg4 {[%clk
0:04:39.1]} 10. Be2 {[%clk 0:04:24.8]} 10... Qe7 {[%clk 0:04:34.5]} 11. h3
{[%clk 0:04:23.6]} 11... Bxf3 {[%clk 0:04:31.1]} 12. Bxf3 {[%clk 0:04:21.2]}
12... Qe6 {[%clk 0:04:29.1]} 13. Bxf6 {[%clk 0:03:57.3]} 13... gxf6 {[%clk
0:04:23.3]} 14. Bxh5 {[%clk 0:03:52.3]} 14... d5 {[%clk 0:04:14.5]} 15. Qd2
{[%clk 0:03:37.2]} 15... Rxh5 {[%clk 0:04:09.5]} 16. O-O-O {[%clk 0:03:34.2]}
16... a5 {[%clk 0:04:07.2]} 17. Qe2 {[%clk 0:03:24.1]} 17... a4 {[%clk
0:04:05.6]} 18. Qxh5 {[%clk 0:03:20.7]} 18... Ke7 {[%clk 0:03:38.9]} 19. Nd2
{[%clk 0:02:59.6]} 19... Qd6 {[%clk 0:03:26.7]} 20. Nc4 {[%clk 0:02:42.3]} 20...
Qc5 {[%clk 0:03:24.3]} 21. Nxb6 {[%clk 0:02:40.5]} 21... Qxb6 {[%clk 0:03:24.2]}
22. Rxd5 {[%clk 0:02:33.5]} 22... Qc7 {[%clk 0:03:17.8]} 23. Rhd1 {[%clk
0:02:28.6]} 23... Rd8 {[%clk 0:03:02.5]} 24. Rxd8 {[%clk 0:02:17.5]} 24... Nxd8
{[%clk 0:03:02.4]} 25. Qe2 {[%clk 0:02:03.1]} 25... Ne6 {[%clk 0:02:59]} 26. Qb5
{[%clk 0:01:50.8]} 26... a3 {[%clk 0:02:52.6]} 27. Qb4+ {[%clk 0:01:47.9]} 27...
Ke8 {[%clk 0:02:49.1]} 28. Qxa3 {[%clk 0:01:46.8]} 1-0

[Event "Live Chess"]
[Site "Chess.com"]
[Date "2024.06.01"]
[Round "-"]
[White "lyricalschemes"]
[Black "Richardallis"]
[Result "1-0"]
[WhiteElo "2165"]
[BlackElo "1941"]
[TimeControl "300"]
[EndTime "10:03:18 PDT"]
[Termination "lyricalschemes won by resignation"]

1. e4 {[%clk 0:04:59.2]} 1... d5 {[%clk 0:04:31.1]} 2. exd5 {[%clk 0:04:57.8]}
2... Nf6 {[%clk 0:04:23]} 3. Nc3 {[%clk 0:04:55.7]} 3... Nxd5 {[%clk 0:04:21.2]}
4. Nf3 {[%clk 0:04:54.6]} 4... Bg4 {[%clk 0:04:18.7]} 5. Bc4 {[%clk 0:04:53.2]}
5... c6 {[%clk 0:04:17.7]} 6. d3 {[%clk 0:04:50]} 6... e6 {[%clk 0:04:16.5]} 7.
h3 {[%clk 0:04:47.3]} 7... Bxf3 {[%clk 0:04:15.2]} 8. Qxf3 {[%clk 0:04:46.2]}
8... Bd6 {[%clk 0:04:13.8]} 9. Ne4 {[%clk 0:04:42]} 9... Bc7 {[%clk 0:04:12.3]}
10. Bg5 {[%clk 0:04:37.4]} 10... f6 {[%clk 0:04:10.2]} 11. Bh4 {[%clk
0:04:36.3]} 11... O-O {[%clk 0:04:09.1]} 12. O-O {[%clk 0:04:34.6]} 12... Nd7
{[%clk 0:04:07.6]} 13. Rfe1 {[%clk 0:04:33]} 13... Ne5 {[%clk 0:04:06.5]} 14.
Qe2 {[%clk 0:04:27.4]} 14... Nxc4 {[%clk 0:04:00.8]} 15. dxc4 {[%clk 0:04:27.3]}
15... Nf4 {[%clk 0:03:59.8]} 16. Qf3 {[%clk 0:04:26.3]} 16... Ng6 {[%clk
0:03:46.8]} 17. Bg3 {[%clk 0:04:24.2]} 17... Bxg3 {[%clk 0:03:46.2]} 18. Qxg3
{[%clk 0:04:20.6]} 18... e5 {[%clk 0:03:45.5]} 19. Rad1 {[%clk 0:04:19.2]} 19...
Qb6 {[%clk 0:03:44.1]} 20. b3 {[%clk 0:04:17.2]} 20... Rad8 {[%clk 0:03:41.1]}
21. h4 {[%clk 0:04:13.9]} 21... Kf7 {[%clk 0:03:34.7]} 22. Qg4 {[%clk
0:04:08.4]} 22... Nf4 {[%clk 0:03:27.3]} 23. g3 {[%clk 0:04:02.7]} 23... Ne6
{[%clk 0:03:18.1]} 24. Nd6+ {[%clk 0:03:58.2]} 24... Rxd6 {[%clk 0:03:14.9]} 25.
Rxd6 {[%clk 0:03:57.1]} 25... Rd8 {[%clk 0:03:10.9]} 26. Qxe6+ {[%clk
0:03:55.7]} 1-0

[Event "Live Chess"]
[Site "Chess.com"]
[Date "2024.06.01"]
[Round "-"]
[White "Mangoalo"]
[Black "PatientChessPapa"]
[Result "1-0"]
[WhiteElo "992"]
[BlackElo "784"]
[TimeControl "300"]
[EndTime "10:03:27 PDT"]
[Termination "Mangoalo won by resignation"]

1. e4 {[%clk 0:04:59]} 1... e5 {[%clk 0:04:57]} 2. Ne2 {[%clk 0:04:58.9]} 2...
Nf6 {[%clk 0:04:53.7]} 3. Nbc3 {[%clk 0:04:58.8]} 3... Nc6 {[%clk 0:04:48.8]} 4.
d3 {[%clk 0:04:58.4]} 4... Bc5 {[%clk 0:04:38.2]} 5. Bg5 {[%clk 0:04:57.9]} 5...
O-O {[%clk 0:04:31.2]} 6. Qd2 {[%clk 0:04:53.1]} 6... d6 {[%clk 0:04:17.9]} 7.
Nd5 {[%clk 0:04:51.7]} 7... Be6 {[%clk 0:04:08.5]} 8. Nxf6+ {[%clk 0:04:49.9]}
8... gxf6 {[%clk 0:04:03.3]} 9. Bh6 {[%clk 0:04:48.6]} 9... Ne7 {[%clk
0:03:42.6]} 10. b4 {[%clk 0:04:46.6]} 10... Bd4 {[%clk 0:03:29.2]} 11. Nxd4
{[%clk 0:04:44.4]} 11... exd4 {[%clk 0:03:28.1]} 12. Qe2 {[%clk 0:04:42.4]}
12... Re8 {[%clk 0:03:14]} 13. Qg4+ {[%clk 0:04:40.4]} 13... Ng6 {[%clk
0:03:12.6]} 14. Qg3 {[%clk 0:04:36.6]} 14... d5 {[%clk 0:03:04.7]} 15. exd5
{[%clk 0:04:32.5]} 15... Bxd5+ {[%clk 0:02:54.9]} 16. Be2 {[%clk 0:04:31.1]}
16... Qe7 {[%clk 0:02:44.9]} 17. Qg4 {[%clk 0:04:22.5]} 17... f5 {[%clk
0:02:30.1]} 18. Qh5 {[%clk 0:04:11.7]} 18... Nf4 {[%clk 0:02:07.9]} 19. Bxf4
{[%clk 0:03:58.9]} 19... Bxg2 {[%clk 0:01:58.2]} 20. Rg1 {[%clk 0:03:56.8]}
20... Qxe2+ {[%clk 0:01:40.3]} 21. Qxe2 {[%clk 0:03:53.2]} 21... Rxe2+ {[%clk
0:01:39.2]} 22. Kxe2 {[%clk 0:03:53.1]} 22... Re8+ {[%clk 0:01:32.6]} 23. Kd2
{[%clk 0:03:51.4]} 1-0

[Event "Live Chess"]
[Site "Chess.com"]
[Date "2024.06.01"]
[Round "-"]
[White "MellowAesthetic"]
[Black "Ksenia_2013"]
[Result "1-0"]
[WhiteElo "2068"]
[BlackElo "720"]
[TimeControl "300"]
[EndTime "10:03:36 PDT"]
[Termination "MellowAesthetic won by checkmate"]

1. e4 {[%clk 0:04:58.4]} 1... e5 {[%clk 0:04:58.3]} 2. Nf3 {[%clk 0:04:57]} 2...
Nc6 {[%clk 0:04:56.6]} 3. Bc4 {[%clk 0:04:56]} 3... Bc5 {[%clk 0:04:54.7]} 4. c3
{[%clk 0:04:55.1]} 4... Nf6 {[%clk 0:04:52]} 5. d3 {[%clk 0:04:52]} 5... O-O
{[%clk 0:04:48.7]} 6. O-O {[%clk 0:04:51]} 6... Ng4 {[%clk 0:04:46]} 7. d4
{[%clk 0:04:26.9]} 7... exd4 {[%clk 0:04:38.1]} 8. cxd4 {[%clk 0:04:26.8]} 8...
Nxd4 {[%clk 0:04:35.9]} 9. Nxd4 {[%clk 0:04:25.4]} 9... Bxd4 {[%clk 0:04:34.6]}
10. Qxd4 {[%clk 0:04:23.6]} 10... Qh4 {[%clk 0:04:31.9]} 11. h3 {[%clk
0:04:21.9]} 11... d6 {[%clk 0:04:24.8]} 12. hxg4 {[%clk 0:04:17.7]} 12... Bxg4
{[%clk 0:04:22.8]} 13. Nc3 {[%clk 0:04:11.8]} 13... Qh5 {[%clk 0:04:17.8]} 14.
Bf4 {[%clk 0:04:03.6]} 14... Qg6 {[%clk 0:04:14.8]} 15. Nd5 {[%clk 0:03:53.6]}
15... Bh3 {[%clk 0:04:12.5]} 16. Ne7+ {[%clk 0:03:52.7]} 16... Kh8 {[%clk
0:04:06.7]} 17. Nxg6+ {[%clk 0:03:52.6]} 17... hxg6 {[%clk 0:04:05.3]} 18. gxh3
{[%clk 0:03:51.5]} 18... c5 {[%clk 0:04:00.1]} 19. Qxd6 {[%clk 0:03:48.1]} 19...
Rad8 {[%clk 0:03:57.1]} 20. Qxc5 {[%clk 0:03:46.8]} 20... f6 {[%clk 0:03:52.7]}
21. Qxa7 {[%clk 0:03:41.2]} 21... Rde8 {[%clk 0:03:47.3]} 22. Qxb7 {[%clk
0:03:39.5]} 22... Rxe4 {[%clk 0:03:44.3]} 23. Qxe4 {[%clk 0:03:38.5]} 23... f5
{[%clk 0:03:41.5]} 24. Qe7 {[%clk 0:03:37.2]} 24... Rg8 {[%clk 0:03:38]} 25.
Qh4# {[%clk 0:03:33.6]} 1-0

[Event "Live Chess"]
[Site "Chess.com"]
[Date "2024.06.01"]
[Round "-"]
[White "Bob2pen"]
[Black "Enhard"]
[Result "1-0"]
[WhiteElo "1828"]
[BlackElo "1425"]
[TimeControl "300"]
[EndTime "10:03:50 PDT"]
[Termination "Bob2pen won by resignation"]

1. e4 {[%clk 0:04:55.4]} 1... c6 {[%clk 0:04:58.5]} 2. d4 {[%clk 0:04:54.2]}
2... d5 {[%clk 0:04:58]} 3. Nd2 {[%clk 0:04:53.5]} 3... dxe4 {[%clk 0:04:56.8]}
4. Nxe4 {[%clk 0:04:52.7]} 4... Bf5 {[%clk 0:04:56.3]} 5. Ng3 {[%clk 0:04:51.8]}
5... Bg6 {[%clk 0:04:55.3]} 6. Nf3 {[%clk 0:04:51.1]} 6... h6 {[%clk 0:04:50.5]}
7. h4 {[%clk 0:04:50.3]} 7... e6 {[%clk 0:04:46.8]} 8. h5 {[%clk 0:04:49.2]}
8... Bh7 {[%clk 0:04:45]} 9. Bd3 {[%clk 0:04:47.7]} 9... Bxd3 {[%clk 0:04:43.7]}
10. Qxd3 {[%clk 0:04:46.9]} 10... Nf6 {[%clk 0:04:43.2]} 11. Bf4 {[%clk
0:04:45.4]} 11... Be7 {[%clk 0:04:41.5]} 12. O-O-O {[%clk 0:04:42.3]} 12... Qb6
{[%clk 0:04:38.6]} 13. Kb1 {[%clk 0:04:38.9]} 13... Nd5 {[%clk 0:04:35.1]} 14.
Bd2 {[%clk 0:04:36.5]} 14... Bb4 {[%clk 0:04:33.5]} 15. c3 {[%clk 0:04:32.2]}
15... Bd6 {[%clk 0:04:27.4]} 16. Ne4 {[%clk 0:04:28.1]} 16... Be7 {[%clk
0:04:23.3]} 17. Ne5 {[%clk 0:04:23.8]} 17... Nd7 {[%clk 0:04:20.1]} 18. f4
{[%clk 0:04:18.9]} 18... O-O-O {[%clk 0:04:14.8]} 19. Nxf7 {[%clk 0:04:16.9]}
19... Rhf8 {[%clk 0:04:09.9]} 20. Nxd8 {[%clk 0:04:14.8]} 20... Bxd8 {[%clk
0:04:07.2]} 21. Rhf1 {[%clk 0:04:01.1]} 21... Ne7 {[%clk 0:03:59.1]} 22. g4
{[%clk 0:03:57.1]} 22... Bc7 {[%clk 0:03:53.4]} 23. g5 {[%clk 0:03:54.5]} 23...
Nf5 {[%clk 0:03:47.4]} 24. gxh6 {[%clk 0:03:40.1]} 24... gxh6 {[%clk 0:03:45.9]}
25. Rg1 {[%clk 0:03:35.2]} 25... Nd6 {[%clk 0:03:21.2]} 26. Nxd6+ {[%clk
0:03:32.8]} 26... Bxd6 {[%clk 0:03:19.9]} 27. Rg6 {[%clk 0:03:31.3]} 27... Ba3
{[%clk 0:03:03.1]} 28. Bc1 {[%clk 0:03:25.6]} 28... Rd8 {[%clk 0:03:01.6]} 29.
Qe2 {[%clk 0:03:17.1]} 29... Nb8 {[%clk 0:02:30.4]} 30. Rxe6 {[%clk 0:03:12.8]}
30... Na6 {[%clk 0:02:24.6]} 31. Re8 {[%clk 0:03:10.3]} 31... Qc7 {[%clk
0:02:03.6]} 32. Qe6+ {[%clk 0:03:01.7]} 32... Kb8 {[%clk 0:02:01.4]} 33. Qg8
{[%clk 0:02:53.4]} 33... Rxe8 {[%clk 0:01:46.3]} 34. Qxe8+ {[%clk 0:02:51.7]}
34... Qc8 {[%clk 0:01:44.9]} 35. Qxc8+ {[%clk 0:02:48.8]} 1-0

[Event "Live Chess"]
[Site "Chess.com"]
[Date "2024.06.01"]
[Round "-"]
[White "CarmelJane"]
[Black "Yarigo"]
[Result "0-1"]
[WhiteElo "2112"]
[BlackElo "2383"]
[TimeControl "300"]
[EndTime "10:03:58 PDT"]
[Termination "Yarigo won by resignation"]

1. e4 {[%clk 0:04:56.5]} 1... e5 {[%clk 0:04:57.8]} 2. Nf3 {[%clk 0:04:55.6]}
2... Nc6 {[%clk 0:04:57.2]} 3. d4 {[%clk 0:04:54]} 3... exd4 {[%clk 0:04:54.1]}
4. Bc4 {[%clk 0:04:52.8]} 4... Nf6 {[%clk 0:04:50.9]} 5. e5 {[%clk 0:04:50.7]}
5... d5 {[%clk 0:04:48.2]} 6. Bb5 {[%clk 0:04:47.8]} 6... Nd7 {[%clk 0:04:47.4]}
7. Nxd4 {[%clk 0:04:33.9]} 7... Nxd4 {[%clk 0:04:45]} 8. Qxd4 {[%clk 0:04:28.7]}
8... c6 {[%clk 0:04:44.4]} 9. Bd3 {[%clk 0:04:19.4]} 9... Qb6 {[%clk 0:04:34.7]}
10. Qf4 {[%clk 0:04:08.8]} 10... Qb4+ {[%clk 0:04:25.4]} 11. Qxb4 {[%clk
0:04:05.4]} 11... Bxb4+ {[%clk 0:04:24.8]} 12. c3 {[%clk 0:04:03.1]} 12... Ba5
{[%clk 0:04:22]} 13. O-O {[%clk 0:03:57.3]} 13... Bb6 {[%clk 0:04:06.9]} 14. Re1
{[%clk 0:03:55.1]} 14... O-O {[%clk 0:04:02]} 15. Kh1 {[%clk 0:03:52.7]} 15...
Nc5 {[%clk 0:03:48.4]} 16. Bc2 {[%clk 0:03:50.3]} 16... f6 {[%clk 0:03:43]} 17.
exf6 {[%clk 0:03:23.1]} 17... Rxf6 {[%clk 0:03:41.2]} 18. f3 {[%clk 0:03:22.7]}
18... Bf5 {[%clk 0:03:36.2]} 19. Bb3 {[%clk 0:03:08.1]} 19... Re6 {[%clk
0:03:28.7]} 20. Rxe6 {[%clk 0:03:05.7]} 20... Nxe6 {[%clk 0:03:22]} 21. Bd2
{[%clk 0:02:49.9]} 21... Re8 {[%clk 0:03:10.9]} 22. c4 {[%clk 0:02:36.9]} 22...
Nc5 {[%clk 0:02:58.2]} 23. Nc3 {[%clk 0:02:29.7]} 23... Nxb3 {[%clk 0:02:52.1]}
24. axb3 {[%clk 0:02:27.9]} 24... d4 {[%clk 0:02:49]} 25. Na4 {[%clk 0:02:23.4]}
25... Re2 {[%clk 0:02:35.5]} 26. Bb4 {[%clk 0:02:00.3]} 26... Bc2 {[%clk
0:02:06]} 27. Re1 {[%clk 0:01:45.4]} 27... Rxe1+ {[%clk 0:01:57.2]} 28. Bxe1
{[%clk 0:01:45.3]} 28... Bc7 {[%clk 0:01:41.5]} 29. Nc5 {[%clk 0:01:14.5]} 29...
Kf7 {[%clk 0:01:35]} 30. g3 {[%clk 0:01:12.9]} 30... b6 {[%clk 0:01:32.9]} 31.
Ne4 {[%clk 0:01:10.1]} 31... Bxb3 {[%clk 0:01:25.7]} 32. c5 {[%clk 0:01:06.7]}
32... Bc2 {[%clk 0:01:18.4]} 33. b4 {[%clk 0:01:04]} 33... Bxe4 {[%clk
0:01:04.2]} 34. fxe4 {[%clk 0:01:03.9]} 34... bxc5 {[%clk 0:01:02.8]} 35. bxc5
{[%clk 0:01:03.8]} 35... a5 {[%clk 0:01:01.8]} 36. Bf2 {[%clk 0:01:01.5]} 36...
a4 {[%clk 0:01:01.1]} 37. Bxd4 {[%clk 0:01:00.7]} 37... Ke6 {[%clk 0:00:55.9]}
38. Kg2 {[%clk 0:00:59.9]} 38... Be5 {[%clk 0:00:54.5]} 0-1

[Event "Live Chess"]
[Site "Chess.com"]
[Date "2024.06.01"]
[Round "-"]
[White "Velocity"]
[Black "Ferrarifan27"]
[Result "0-1"]
[WhiteElo "1712"]
[BlackElo "2078"]
[TimeControl "300"]
[EndTime "10:04:05 PDT"]
[Termination "Ferrarifan27 won by resignation"]

1. e4 {[%clk 0:04:59.7]} 1... e5 {[%clk 0:04:57.4]} 2. Nf3 {[%clk 0:04:54.2]}
2... Nc6 {[%clk 0:04:56]} 3. Bc4 {[%clk 0:04:53.6]} 3... Bc5 {[%clk 0:04:53.4]}
4. O-O {[%clk 0:04:41.3]} 4... d6 {[%clk 0:04:51.1]} 5. c3 {[%clk 0:04:39.7]}
5... Bg4 {[%clk 0:04:45]} 6. h3 {[%clk 0:04:33.9]} 6... Bh5 {[%clk 0:04:39.8]}
7. d3 {[%clk 0:04:26.1]} 7... Nf6 {[%clk 0:04:35.6]} 8. Re1 {[%clk 0:04:20.3]}
8... O-O {[%clk 0:04:34.3]} 9. Nbd2 {[%clk 0:04:19]} 9... a6 {[%clk 0:04:23.6]}
10. b4 {[%clk 0:04:18]} 10... Bb6 {[%clk 0:04:21.3]} 11. a4 {[%clk 0:04:17]}
11... d5 {[%clk 0:04:18.1]} 12. exd5 {[%clk 0:04:10.1]} 12... Nxd5 {[%clk
0:04:18]} 13. Bb2 {[%clk 0:03:57.9]} 13... Nf4 {[%clk 0:04:09.3]} 14. Nf1 {[%clk
0:03:52.3]} 14... Qf6 {[%clk 0:03:56.4]} 15. Ng3 {[%clk 0:03:44]} 15... Nxh3+
{[%clk 0:03:53.4]} 16. gxh3 {[%clk 0:03:38.1]} 16... Bxf3 {[%clk 0:03:52.2]} 17.
Qd2 {[%clk 0:03:35]} 17... Rad8 {[%clk 0:03:46.8]} 18. Ne4 {[%clk 0:03:24.6]}
18... Qg6+ {[%clk 0:03:45.7]} 19. Ng3 {[%clk 0:03:21.2]} 19... Qxg3+ {[%clk
0:03:43.5]} 0-1

[Event "Live Chess"]
[Site "Chess.com"]
[Date "2024.06.01"]
[Round "-"]
[White "TheSmoulderingMaster"]
[Black "ACM42"]
[Result "0-1"]
[WhiteElo "1748"]
[BlackElo "2212"]
[TimeControl "300"]
[EndTime "10:04:08 PDT"]
[Termination "ACM42 won by resignation"]

1. e4 {[%clk 0:04:57.4]} 1... e6 {[%clk 0:04:57.6]} 2. d4 {[%clk 0:04:56.2]}
2... d5 {[%clk 0:04:56.9]} 3. Nc3 {[%clk 0:04:54.7]} 3... Nf6 {[%clk 0:04:54.7]}
4. Bg5 {[%clk 0:04:53.1]} 4... Be7 {[%clk 0:04:53.1]} 5. e5 {[%clk 0:04:52.4]}
5... Nfd7 {[%clk 0:04:52.2]} 6. Bxe7 {[%clk 0:04:51.5]} 6... Qxe7 {[%clk
0:04:51.1]} 7. f4 {[%clk 0:04:50.8]} 7... a6 {[%clk 0:04:49.8]} 8. Nf3 {[%clk
0:04:49.9]} 8... c5 {[%clk 0:04:49]} 9. Bd3 {[%clk 0:04:47.3]} 9... Nc6 {[%clk
0:04:47.8]} 10. O-O {[%clk 0:04:45.2]} 10... g6 {[%clk 0:04:46.2]} 11. dxc5
{[%clk 0:04:42.7]} 11... Nxc5 {[%clk 0:04:44.8]} 12. Qe2 {[%clk 0:04:41.7]}
12... Bd7 {[%clk 0:04:39.3]} 13. Rad1 {[%clk 0:04:39.5]} 13... Rc8 {[%clk
0:04:34]} 14. Nb1 {[%clk 0:04:37]} 14... Nxd3 {[%clk 0:04:32.4]} 15. Rxd3 {[%clk
0:04:35.5]} 15... Nb4 {[%clk 0:04:25.3]} 16. Rb3 {[%clk 0:04:34]} 16... Bb5
{[%clk 0:04:23.3]} 17. Qd2 {[%clk 0:04:28.6]} 17... Qc5+ {[%clk 0:04:10]} 18.
Qf2 {[%clk 0:04:17.5]} 18... Bxf1 {[%clk 0:04:07]} 19. Qxc5 {[%clk 0:04:16.4]}
19... Rxc5 {[%clk 0:04:04.7]} 20. Rxb4 {[%clk 0:04:15.8]} 20... Bb5 {[%clk
0:04:02.5]} 21. a4 {[%clk 0:04:13.1]} 21... Bc6 {[%clk 0:03:58.8]} 22. Nd4
{[%clk 0:04:11.3]} 22... Kd7 {[%clk 0:03:49.3]} 23. c3 {[%clk 0:04:08.7]} 23...
a5 {[%clk 0:03:44.3]} 24. Rb6 {[%clk 0:04:06]} 24... Kc7 {[%clk 0:03:40.3]} 25.
Rb3 {[%clk 0:04:02]} 25... Bxa4 {[%clk 0:03:38]} 26. Ra3 {[%clk 0:04:00]} 26...
Bd7 {[%clk 0:03:35]} 27. Nd2 {[%clk 0:03:57.2]} 27... a4 {[%clk 0:03:31.8]} 28.
b4 {[%clk 0:03:51.9]} 28... axb3 {[%clk 0:03:27.2]} 29. Rxb3 {[%clk 0:03:51.2]}
29... Ra8 {[%clk 0:03:25.4]} 30. c4 {[%clk 0:03:48.3]} 30... dxc4 {[%clk
0:03:21]} 31. Rc3 {[%clk 0:03:46.7]} 31... b5 {[%clk 0:03:20.3]} 0-1

[Event "Live Chess"]
[Site "Chess.com"]
[Date "2024.06.01"]
[Round "-"]
[White "NottheBishopSacrifice"]
[Black "SirGerhard"]
[Result "0-1"]
[WhiteElo "2160"]
[BlackElo "2765"]
[TimeControl "300"]
[EndTime "10:04:26 PDT"]
[Termination "SirGerhard won by resignation"]

1. d4 {[%clk 0:04:58.3]} 1... Nf6 {[%clk 0:04:58.7]} 2. c4 {[%clk 0:04:56.3]}
2... g6 {[%clk 0:04:58.1]} 3. g3 {[%clk 0:04:55.2]} 3... Bg7 {[%clk 0:04:57.3]}
4. Bg2 {[%clk 0:04:54.5]} 4... d6 {[%clk 0:04:56.3]} 5. Nc3 {[%clk 0:04:53.4]}
5... O-O {[%clk 0:04:55.5]} 6. h3 {[%clk 0:04:52.5]} 6... c6 {[%clk 0:04:52.6]}
7. Nf3 {[%clk 0:04:50]} 7... Qa5 {[%clk 0:04:51.6]} 8. O-O {[%clk 0:04:46.9]}
8... Qa6 {[%clk 0:04:51.2]} 9. Qd3 {[%clk 0:04:41.6]} 9... Be6 {[%clk
0:04:48.2]} 10. b3 {[%clk 0:04:39.2]} 10... d5 {[%clk 0:04:47.5]} 11. c5 {[%clk
0:04:31.9]} 11... Qxd3 {[%clk 0:04:44.7]} 12. exd3 {[%clk 0:04:31.8]} 12... Bf5
{[%clk 0:04:43.4]} 13. Rd1 {[%clk 0:04:29.8]} 13... Na6 {[%clk 0:04:42.4]} 14.
Be3 {[%clk 0:04:18.9]} 14... Nb4 {[%clk 0:04:38.7]} 15. Ne1 {[%clk 0:04:17.6]}
15... Nd7 {[%clk 0:04:27.5]} 16. a3 {[%clk 0:04:14.7]} 16... Na6 {[%clk
0:04:26.9]} 17. f4 {[%clk 0:04:08.5]} 17... Naxc5 {[%clk 0:04:20.7]} 18. dxc5
{[%clk 0:03:57.9]} 18... Bxc3 {[%clk 0:04:18.4]} 19. Rab1 {[%clk 0:03:55.9]}
19... d4 {[%clk 0:04:16.3]} 20. Bf2 {[%clk 0:03:55.4]} 20... Nxc5 {[%clk
0:04:15.1]} 21. g4 {[%clk 0:03:54]} 21... Be6 {[%clk 0:04:11]} 22. Nf3 {[%clk
0:03:53]} 22... Bxb3 {[%clk 0:04:04.7]} 23. Rf1 {[%clk 0:03:50.9]} 23... Rad8
{[%clk 0:04:00.9]} 24. Ne5 {[%clk 0:03:43.7]} 24... f6 {[%clk 0:03:55.3]} 25.
Nc4 {[%clk 0:03:41]} 25... Bc2 {[%clk 0:03:52.4]} 0-1

[Event "Live Chess"]
[Site "Chess.com"]
[Date "2024.06.01"]
[Round "-"]
[White "Bradfield133"]
[Black "willc-h99"]
[Result "0-1"]
[WhiteElo "2038"]
[BlackElo "2654"]
[TimeControl "300"]
[EndTime "10:04:28 PDT"]
[Termination "willc-h99 won by checkmate"]

1. c4 {[%clk 0:04:57.9]} 1... b6 {[%clk 0:04:58.6]} 2. g3 {[%clk 0:04:55.2]}
2... Bb7 {[%clk 0:04:57.8]} 3. Nf3 {[%clk 0:04:55]} 3... g5 {[%clk 0:04:56.1]}
4. Bg2 {[%clk 0:04:52.1]} 4... g4 {[%clk 0:04:55.4]} 5. Nh4 {[%clk 0:04:50.6]}
5... Bxg2 {[%clk 0:04:55.3]} 6. Nxg2 {[%clk 0:04:49.1]} 6... h5 {[%clk
0:04:55.2]} 7. h3 {[%clk 0:04:35.4]} 7... gxh3 {[%clk 0:04:50.1]} 8. Rxh3 {[%clk
0:04:33.2]} 8... d5 {[%clk 0:04:47.1]} 9. cxd5 {[%clk 0:04:25.5]} 9... Qxd5
{[%clk 0:04:42.4]} 10. Nf4 {[%clk 0:04:23.9]} 10... Qd7 {[%clk 0:04:38.7]} 11.
e3 {[%clk 0:04:12.1]} 11... e5 {[%clk 0:04:32.2]} 12. Rxh5 {[%clk 0:04:05.5]}
12... Rxh5 {[%clk 0:04:30.4]} 13. Nxh5 {[%clk 0:04:04.1]} 13... Qh3 {[%clk
0:04:25.7]} 14. Qf3 {[%clk 0:03:59.5]} 14... Ne7 {[%clk 0:03:58.8]} 15. Nf6+
{[%clk 0:03:52.7]} 15... Kd8 {[%clk 0:03:57.6]} 16. Qxa8 {[%clk 0:03:51]} 16...
Nc6 {[%clk 0:03:56.6]} 17. d4 {[%clk 0:02:56.1]} 17... Qh1+ {[%clk 0:03:48]} 18.
Kd2 {[%clk 0:02:53.8]} 18... Qf3 {[%clk 0:03:40.9]} 19. d5 {[%clk 0:02:33.9]}
19... Qxf2+ {[%clk 0:03:38.5]} 20. Kd3 {[%clk 0:02:10.9]} 20... Nb4+ {[%clk
0:03:28.4]} 21. Ke4 {[%clk 0:01:48.4]} 21... Qg2+ {[%clk 0:03:16]} 22. Kf5
{[%clk 0:01:27]} 22... Qf3+ {[%clk 0:03:14]} 23. Kg5 {[%clk 0:01:20.1]} 23...
Qxg3+ {[%clk 0:03:13.1]} 24. Kf5 {[%clk 0:01:12.1]} 24... Qf3+ {[%clk
0:03:11.3]} 25. Kg5 {[%clk 0:01:08.6]} 25... Qg3+ {[%clk 0:03:02.5]} 26. Kf5
{[%clk 0:01:06.2]} 26... Qg6+ {[%clk 0:02:58.3]} 27. Kxe5 {[%clk 0:00:56.1]}
27... Bd6+ {[%clk 0:02:57.7]} 28. Kd4 {[%clk 0:00:38.9]} 28... Qd3# {[%clk
0:02:57.6]} 0-1

[Event "Live Chess"]
[Site "Chess.com"]
[Date "2024.06.01"]
[Round "-"]
[White "GwaryTek"]
[Black "Rusty_Bridges"]
[Result "1-0"]
[WhiteElo "1906"]
[BlackElo "1528"]
[TimeControl "300"]
[EndTime "10:04:44 PDT"]
[Termination "GwaryTek won by resignation"]

1. d4 {[%clk 0:04:58.4]} 1... d5 {[%clk 0:04:56.8]} 2. Bg5 {[%clk 0:04:57.7]}
2... h6 {[%clk 0:04:54.4]} 3. Bh4 {[%clk 0:04:56.9]} 3... g5 {[%clk 0:04:52.7]}
4. Bg3 {[%clk 0:04:56.8]} 4... Bg7 {[%clk 0:04:51.4]} 5. Nf3 {[%clk 0:04:56.7]}
5... e6 {[%clk 0:04:49.6]} 6. e3 {[%clk 0:04:56.3]} 6... Nf6 {[%clk 0:04:48.8]}
7. c4 {[%clk 0:04:55.5]} 7... c6 {[%clk 0:04:46.1]} 8. Nc3 {[%clk 0:04:55]} 8...
Nbd7 {[%clk 0:04:43.6]} 9. h4 {[%clk 0:04:53.8]} 9... g4 {[%clk 0:04:42]} 10.
Nd2 {[%clk 0:04:52]} 10... h5 {[%clk 0:04:38.5]} 11. Bd3 {[%clk 0:04:49]} 11...
a6 {[%clk 0:04:34.1]} 12. Qc2 {[%clk 0:04:41.3]} 12... b5 {[%clk 0:04:31]} 13.
cxb5 {[%clk 0:04:39.8]} 13... axb5 {[%clk 0:04:29.9]} 14. O-O {[%clk 0:04:35]}
14... Nb6 {[%clk 0:04:28.3]} 15. b3 {[%clk 0:04:33.5]} 15... Bd7 {[%clk
0:04:17.1]} 16. f3 {[%clk 0:04:08]} 16... Bc8 {[%clk 0:04:11.2]} 17. Nxb5 {[%clk
0:03:59]} 17... cxb5 {[%clk 0:04:07.4]} 18. Bc7 {[%clk 0:03:57.8]} 18... Qd7
{[%clk 0:04:00.8]} 19. Bxb6 {[%clk 0:03:56.6]} 19... gxf3 {[%clk 0:03:53.6]} 20.
gxf3 {[%clk 0:03:50.1]} 20... Qe7 {[%clk 0:03:49.1]} 21. Qc5 {[%clk 0:03:46.5]}
21... Qxc5 {[%clk 0:03:45.2]} 22. Bxc5 {[%clk 0:03:37.1]} 22... Bd7 {[%clk
0:03:43.9]} 23. Kf2 {[%clk 0:03:35.3]} 23... Bc6 {[%clk 0:03:38.1]} 24. Rg1
{[%clk 0:03:33.4]} 24... Bh6 {[%clk 0:03:32.8]} 25. Nb1 {[%clk 0:03:11]} 25...
Kd7 {[%clk 0:03:30.3]} 26. Nc3 {[%clk 0:03:09.6]} 26... Rab8 {[%clk 0:03:25.2]}
27. b4 {[%clk 0:02:26.2]} 27... Ne8 {[%clk 0:02:55.4]} 28. a4 {[%clk 0:02:15.2]}
28... bxa4 {[%clk 0:02:53]} 29. b5 {[%clk 0:02:14]} 29... Bb7 {[%clk 0:02:51.3]}
30. Rxa4 {[%clk 0:02:12.6]} 30... Nc7 {[%clk 0:02:46.3]} 31. Ra7 {[%clk
0:02:01.7]} 31... Ne8 {[%clk 0:02:27.6]} 32. b6 {[%clk 0:01:30.6]} 32... Nf6
{[%clk 0:02:17]} 33. Bb5+ {[%clk 0:01:13.6]} 33... Kd8 {[%clk 0:02:15.3]} 34.
Bd6 {[%clk 0:01:05.4]} 1-0